bitfinex-derivatives/quotes_BTCF0:USTF0_20250207
["timestamp","ask_amount","ask_price","bid_price","bid_amount"]
[1738959251301,0.7216,96332.0,96331.0,0.0011]
[1738959251693,0.7266,96332.0,96331.0,0.0021]
[1738959253292,0.7266,96332.0,96331.0,0.0011]
[1738959253493,0.013,96332.0,96331.0,0.0011]
[1738959254002,0.3608,96342.0,96341.0,0.2075651]
[1738959254193,0.3608,96353.0,96352.0,0.2075414]
[1738959255496,0.3608,96362.0,96355.0,0.2075349]
[1738959256491,0.3608,96362.0,96358.0,0.2075285]
[1738959256694,0.3608,96362.0,96358.0,0.2951285]
[1738959257912,0.00715569,96359.0,96358.0,0.2961285]
[1738959258211,0.00715569,96359.0,96358.0,0.0886]
[1738959258897,0.01615569,96359.0,96358.0,0.0896]
[1738959259091,0.01615569,96359.0,96358.0,0.002]
[1738959259298,0.01615569,96359.0,96350.0,0.08696]
[1738959259494,0.3608,96352.0,96350.0,0.08696]
[1738959259807,0.3608,96352.0,96350.0,0.2945044]
[1738959260002,0.3608,96352.0,96350.0,0.30861902]
[1738959260504,0.3608,96352.0,96350.0,0.10207462]
[1738959260700,0.9291432,96352.0,96350.0,0.01511462]
[1738959261108,0.127,96351.0,96350.0,0.001]
[1738959261407,0.1892,96351.0,96350.0,0.002]
[1738959261707,0.1892,96351.0,96340.0,0.08688]
[1738959261909,0.568365,96341.0,96340.0,0.08688]
[1738959262493,0.3608,96341.0,96340.0,0.08688]
[1738959262896,0.3608,96341.0,96340.0,0.2944472]
[1738959263100,0.009,96341.0,96340.0,0.1397716]
[1738959263306,0.009,96341.0,96340.0,0.2954472]
[1738959263605,0.009,96341.0,96340.0,0.08788]
[1738959264004,0.018,96341.0,96340.0,0.08888]
[1738959265403,0.018,96341.0,96340.0,0.09888]
[1738959267007,0.018,96341.0,96340.0,0.3064472]
[1738959267707,0.018,96341.0,96340.0,0.09888]
[1738959269413,0.018,96341.0,96340.0,0.012]
[1738959271312,0.1455,96341.0,96340.0,0.012]
[1738959272321,0.1455,96341.0,96340.0,0.00030107]
[1738959273522,0.3530656,96341.0,96340.0,0.00030107]
[1738959276925,0.018,96341.0,96340.0,0.00030107]
[1738959277126,0.018,96341.0,96340.0,0.20786887]
[1738959278713,1e-08,96341.0,96340.0,0.20786887]
[1738959281023,1e-08,96341.0,96340.0,0.00030107]
[1738959281617,1e-08,96341.0,96340.0,0.08586107]
[1738959281819,1e-08,96341.0,96340.0,0.29342887]
[1738959286021,0.3608,96352.0,96350.0,0.2075458]
[1738959286222,0.3608,96352.0,96351.0,0.2055]
[1738959287119,0.3698,96352.0,96351.0,0.2055]
[1738959287722,0.3788,96352.0,96351.0,0.2055]
[1738959288112,0.3698,96352.0,96351.0,0.2055]
[1738959288329,0.3788,96352.0,96351.0,0.2065]
[1738959288826,0.3788,96352.0,96351.0,0.2075]
[1738959289519,0.3788,96352.0,96351.0,0.08672]
[1738959291615,0.3788,96352.0,96351.0,0.002]
[1738959292227,0.5753,96352.0,96351.0,0.002]
[1738959294230,0.3788,96352.0,96351.0,0.002]
[1738959295124,0.5863419,96352.0,96351.0,0.002]
[1738959297628,0.3788,96352.0,96351.0,0.2095441]
[1738959299031,0.3788,96352.0,96351.0,0.002]
[1738959299238,0.5863419,96352.0,96351.0,0.002]
[1738959300225,0.3788,96352.0,96351.0,0.002]
[1738959300420,0.3788,96352.0,96351.0,0.2095441]
[1738959301627,0.018,96352.0,96351.0,0.2095441]
[1738959302539,0.018,96352.0,96351.0,0.002]
[1738959302729,0.3788,96352.0,96351.0,0.002]
[1738959303129,0.5863419,96352.0,96351.0,0.002]
[1738959304434,0.3788,96352.0,96351.0,0.002]
[1738959305426,0.018,96352.0,96351.0,0.002]
[1738959305643,0.00015569,96359.0,96358.0,0.207529]
[1738959305834,0.1325,96379.0,96358.0,0.44528]
[1738959306041,0.1325,96379.0,96369.0,0.12430294]
[1738959306337,0.51258244,96380.0,96369.0,0.12430294]
[1738959306338,0.18184771,96372.0,96369.0,0.12430294]
[1738959306543,0.18184771,96372.0,96360.0,0.24860588]
[1738959306729,0.3608,96365.0,96360.0,0.12430294]
[1738959306929,0.3608,96365.0,96361.0,0.0848]
[1738959307131,0.3608,96367.0,96361.0,0.2923212]
[1738959308031,0.009,96365.0,96363.0,0.2075171]
[1738959308825,0.009,96365.0,96361.0,0.0868]
[1738959309041,0.009,96365.0,96361.0,0.002]
[1738959309335,0.133,96364.0,96361.0,0.002]
[1738959309541,0.133,96364.0,96363.0,0.001]
[1738959311538,0.133,96364.0,96361.0,0.001]
[1738959311744,0.133,96364.0,96361.0,0.002]
[1738959312536,0.134,96364.0,96363.0,0.001]
[1738959312930,0.138,96364.0,96363.0,0.002]
[1738959314027,0.3455161,96364.0,96363.0,0.002]
[1738959314734,0.2075312,96357.0,96356.0,0.00015569]
[1738959314933,0.5683312,96357.0,96356.0,0.00015569]
[1738959315535,0.3608,96357.0,96356.0,0.00015569]
[1738959315737,0.3608,96357.0,96356.0,0.08495569]
[1738959316538,0.3658,96357.0,96356.0,0.08595569]
[1738959317643,0.3678,96357.0,96356.0,0.08695569]
[1738959318336,0.3678,96357.0,96356.0,0.00215569]
[1738959321941,0.435,96357.0,96356.0,0.00215569]
[1738959322146,0.3678,96357.0,96356.0,0.00215569]
[1738959322644,0.5753312,96357.0,96356.0,0.00215569]
[1738959329841,0.20756,96344.0,96342.0,0.2075618]
[1738959330150,0.3608,96343.0,96342.0,0.2075618]
[1738959330738,0.3608,96349.0,96340.0,0.01354728]
[1738959330944,0.3608,96349.0,96348.0,0.2075506]
[1738959331138,0.3608,96349.0,96348.0,0.2930706]
[1738959331444,0.00015569,96354.0,96353.0,0.2075398]
[1738959331853,0.00015569,96354.0,96348.0,0.08552]
[1738959332144,0.00015569,96354.0,96348.0,0.2930694]
[1738959332351,0.00015569,96354.0,96348.0,0.08552]
[1738959332547,0.00015569,96354.0,96350.0,0.2075457]
[1738959332753,0.00015569,96354.0,96351.0,0.0668]
[1738959332954,0.00615569,96354.0,96351.0,0.0668]
[1738959333649,0.00915569,96354.0,96351.0,0.0668]
[1738959334445,0.00915569,96354.0,96351.0,0.0688]
[1738959334652,0.01015569,96354.0,96351.0,0.0698]
[1738959335253,0.01015569,96354.0,96352.0,0.0702]
[1738959336455,0.01015569,96354.0,96352.0,0.0712]
[1738959336657,0.00915569,96354.0,96352.0,0.0722]
[1738959338865,0.00915569,96354.0,96352.0,0.2797412]
[1738959340054,0.3608,96377.0,96352.0,0.0722]
[1738959340257,0.3608,96377.0,96367.0,0.12430294]
[1738959340449,0.3608,96377.0,96368.0,0.15048]
[1738959340650,0.3608,96369.0,96368.0,0.15048]
[1738959342451,0.001,96377.0,96368.0,0.15048]
[1738959342651,0.001,96377.0,96375.0,0.2074924]
[1738959342958,0.3608,96387.0,96376.0,0.1315]
[1738959343262,0.3608,96387.0,96377.0,0.12430294]
[1738959345353,0.3608,96378.0,96377.0,0.12430294]
[1738959345562,0.5682859,96378.0,96377.0,0.08548]
[1738959345848,0.2074902,96376.0,96375.0,0.001]
[1738959346263,0.3608,96378.0,96377.0,0.002]
[1738959346759,0.5692859,96378.0,96377.0,0.002]
[1738959346955,0.5692859,96378.0,96377.0,0.001]
[1738959347864,0.3618,96378.0,96377.0,0.001]
[1738959348762,0.3618,96378.0,96377.0,0.002]
[1738959349065,0.001,96378.0,96377.0,0.002]
[1738959354275,0.01357968,96394.0,96391.0,0.2074579]
[1738959354462,0.01357968,96394.0,96391.0,0.2923379]
[1738959354663,0.4608,96400.0,96391.0,0.08488]
[1738959354863,0.36095569,96392.0,96391.0,0.08488]
[1738959355262,0.36095569,96392.0,96391.0,0.08484]
[1738959355468,0.36195569,96392.0,96391.0,0.08584]
[1738959356169,0.36195569,96392.0,96391.0,0.08684]
[1738959357262,0.33195569,96392.0,96391.0,0.08684]
[1738959357468,0.001,96392.0,96391.0,0.002]
[1738959357666,0.099,96400.0,96399.0,0.2074408]
[1738959358764,0.00015561,96409.0,96408.0,0.2074214]
[1738959359061,0.00015561,96409.0,96408.0,0.2920614]
[1738959360470,0.00015561,96409.0,96408.0,0.6528614]
[1738959360667,0.00155632,96421.0,96420.0,0.2073956]
[1738959360867,0.3608,96431.0,96430.0,0.2073741]
[1738959361066,0.0649,96455.0,96433.0,0.2073676]
[1738959361262,0.00052001,96443.0,96441.0,0.2073489]
[1738959361464,0.1514578,96446.0,96440.0,0.3608]
[1738959361669,0.1514578,96446.0,96445.0,0.2073418]
[1738959362075,0.5122578,96446.0,96433.0,0.13793721]
[1738959362264,0.1514578,96446.0,96434.0,0.08532]
[1738959362464,0.1514578,96446.0,96440.0,0.2073515]
[1738959362870,0.1514578,96446.0,96445.0,0.001]
[1738959363077,0.1514578,96446.0,96445.0,0.08632]
[1738959363578,0.4286975,96446.0,96445.0,0.08632]
[1738959363871,0.2213578,96446.0,96445.0,0.08632]
[1738959364078,0.2213578,96446.0,96445.0,0.08732]
[1738959364268,0.1514578,96446.0,96445.0,0.08632]
[1738959364464,0.09729516,96446.0,96445.0,0.2936618]
[1738959364867,0.09729516,96446.0,96445.0,0.30690882]
[1738959365168,0.18194617,96453.0,96451.0,0.2073276]
[1738959365967,0.0699,96465.0,96449.0,0.3608]
[1738959366171,0.0699,96465.0,96455.0,0.33162194]
[1738959366767,0.0699,96465.0,96456.0,0.2073164]
[1738959366969,0.00155587,96466.0,96456.0,0.2073164]
[1738959368371,0.00155587,96466.0,96456.0,0.002]
[1738959368970,0.00155587,96466.0,96456.0,0.001]
[1738959369166,0.00155587,96466.0,96456.0,0.002]
[1738959369672,0.00155587,96466.0,96457.0,0.08468]
[1738959369874,0.00155587,96466.0,96456.0,0.002]
[1738959370180,0.3608,96463.0,96457.0,0.08468]
[1738959370675,0.3608,96462.0,96456.0,0.001]
[1738959370866,0.207359,96437.0,96430.0,0.12430294]
[1738959371066,0.207359,96437.0,96423.0,0.18574357]
[1738959371067,0.568159,96437.0,96431.0,0.08492]
[1738959371375,0.3608,96437.0,96423.0,0.18574357]
[1738959371587,0.3608,96424.0,96423.0,0.18574357]
[1738959372077,0.4265,96424.0,96423.0,0.18574357]
[1738959372876,0.2073891,96423.0,96414.0,0.00015552]
[1738959373185,0.3608,96415.0,96414.0,0.00015552]
[1738959373681,0.5682063,96415.0,96414.0,0.00015552]
[1738959375178,0.5692063,96415.0,96414.0,0.00015552]
[1738959375377,0.6618,96415.0,96390.0,0.89094294]
[1738959375580,0.3608,96398.0,96391.0,0.085]
[1738959376281,0.3608,96398.0,96390.0,0.76732]
[1738959376474,0.3608,96398.0,96390.0,0.78009549]
[1738959376785,0.3608,96398.0,96397.0,0.2074451]
[1738959377386,0.3608,96398.0,96393.0,0.2074531]
[1738959377577,0.2074451,96397.0,96390.0,0.78077549]
[1738959377885,0.2074451,96397.0,96390.0,0.78009549]
[1738959378392,0.3608,96398.0,96393.0,0.002]
[1738959378581,0.3608,96403.0,96393.0,0.002]
[1738959378777,0.00015561,96404.0,96402.0,0.2074343]
[1738959379176,0.00015561,96404.0,96400.0,0.08536]
[1738959379376,0.20758581,96404.0,96401.0,0.08532]
[1738959379671,0.00015561,96404.0,96401.0,0.08532]
[1738959380788,0.00315561,96404.0,96401.0,0.08532]
[1738959381485,0.00015561,96404.0,96401.0,0.08532]
[1738959381681,0.20958711,96404.0,96401.0,0.08532]
[1738959382073,0.20958711,96404.0,96401.0,0.0128229]
[1738959382273,0.20958711,96404.0,96399.0,0.08528]
[1738959382489,0.3608,96400.0,96399.0,0.08528]
[1738959382679,0.5682386,96400.0,96399.0,0.08528]
[1738959383181,0.5682386,96400.0,96393.0,0.08512]
[1738959383377,0.3608,96398.0,96380.0,0.12430294]
[1738959383576,0.3608,96386.0,96385.0,0.0130932]
[1738959383884,0.3608,96398.0,96391.0,0.2074575]
[1738959384085,0.3608,96398.0,96392.0,0.2074544]
[1738959384286,0.2074604,96390.0,96385.0,0.08523561]
[1738959384487,0.3608,96388.0,96385.0,0.08523561]
[1738959384687,0.3608,96388.0,96385.0,0.00015561]
[1738959385587,0.3608,96388.0,96385.0,0.00515561]
[1738959386089,0.3608,96388.0,96385.0,0.00115561]
[1738959386593,0.3608,96388.0,96385.0,0.00015561]
[1738959386793,0.207467,96387.0,96385.0,0.00115561]
[1738959387282,0.3608,96388.0,96385.0,0.00115561]
[1738959388292,0.2074674,96387.0,96385.0,0.00115561]
[1738959388692,0.0637,96386.0,96385.0,0.00015561]
[1738959388993,0.0637,96386.0,96385.0,0.00115561]
[1738959389392,0.0637,96386.0,96380.0,0.0128725]
[1738959389587,0.2075096,96367.0,96363.0,0.08456]
[1738959389789,0.5683096,96367.0,96358.0,0.1306]
[1738959389983,0.5683096,96367.0,96354.0,0.08456]
[1738959390183,0.5683096,96367.0,96350.0,0.12430294]
[1738959390382,0.36132001,96381.0,96358.0,0.3608]
[1738959390586,0.3608,96373.0,96370.0,0.12430294]
[1738959390787,0.3608,96373.0,96366.0,0.00355651]
[1738959390989,0.3608,96373.0,96371.0,0.207501]
[1738959391194,0.00015561,96376.0,96375.0,0.2074924]
[1738959392188,0.00015561,96376.0,96366.0,0.01654514]
[1738959392389,0.00415561,96376.0,96366.0,0.01654514]
[1738959392590,0.00415561,96376.0,96374.0,0.2074944]
[1738959392986,0.00315561,96376.0,96374.0,0.2074944]
[1738959393186,0.00315561,96376.0,96366.0,0.01554514]
[1738959393396,0.5683096,96367.0,96366.0,0.01554514]
[1738959393603,0.5683096,96367.0,96366.0,0.01454514]
[1738959394697,0.3608,96367.0,96366.0,0.01454514]
[1738959395091,0.3608,96367.0,96366.0,0.01554514]
[1738959395293,0.00415561,96376.0,96367.0,0.2075096]
[1738959395498,0.00015561,96376.0,96372.0,0.2074988]
[1738959396203,0.00015561,96376.0,96368.0,0.0673]
[1738959396398,0.00415561,96376.0,96368.0,0.0673]
[1738959396799,0.00415561,96376.0,96373.0,0.2074963]
[1738959397796,0.00715561,96376.0,96373.0,0.2074963]
[1738959397996,0.00715561,96376.0,96374.0,0.08464]
[1738959398298,0.00715561,96376.0,96375.0,0.2074924]
[1738959398902,0.00155696,96389.0,96374.0,0.08464]
[1738959399111,0.00155696,96389.0,96379.0,0.24860588]
[1738959399300,0.00155696,96389.0,96386.0,0.2074686]
[1738959399604,0.3608,96408.0,96379.0,0.24860588]
[1738959399605,0.3608,96408.0,96388.0,0.3608]
[1738959399905,0.3608,96419.0,96400.0,0.2074367]
[1738959400089,0.00015561,96408.0,96404.0,0.12430294]
[1738959400290,0.00015561,96408.0,96405.0,0.08472]
[1738959400701,0.00015561,96408.0,96401.0,0.0658]
[1738959400907,0.3608,96402.0,96401.0,0.0658]
[1738959401106,0.3608,96402.0,96401.0,0.15052]
[1738959401803,0.00315561,96408.0,96401.0,0.15052]
[1738959402194,0.00415561,96408.0,96405.0,0.001]
[1738959402906,0.00015561,96408.0,96402.0,0.0675]
[1738959403100,0.00415561,96408.0,96402.0,0.0675]
[1738959403496,0.3608,96431.0,96407.0,0.3608]
[1738959403698,0.3608,96431.0,96419.0,0.24860588]
[1738959404102,0.3608,96422.0,96419.0,0.12430294]
[1738959404296,0.3608,96422.0,96412.0,0.12430294]
[1738959405103,0.3608,96422.0,96419.0,0.002]
[1738959405904,0.00015552,96427.0,96425.0,0.2073835]
[1738959406106,0.00015552,96427.0,96426.0,0.1254]
[1738959407305,0.00315552,96427.0,96426.0,0.1254]
[1738959407800,0.00315552,96427.0,96426.0,0.4862]
[1738959408403,0.00315552,96427.0,96426.0,0.1254]
[1738959408610,0.00415552,96427.0,96426.0,0.1264]
[1738959412097,0.3608,96444.0,96426.0,0.1264]
[1738959412296,0.3608,96444.0,96443.0,0.2073461]
[1738959412496,0.00155574,96464.0,96449.0,0.2073322]
[1738959412709,0.00155574,96464.0,96458.0,0.2073134]
[1738959412909,0.00155574,96464.0,96460.0,0.2073093]
[1738959413210,0.00155574,96464.0,96454.0,0.12430294]
[1738959413211,0.00155574,96464.0,96461.0,0.207307]
[1738959413711,0.00155574,96464.0,96454.0,0.12430294]
[1738959414106,0.00455574,96464.0,96458.0,0.001]
[1738959414615,0.00455574,96464.0,96461.0,0.001]
[1738959415497,0.2073031,96463.0,96462.0,0.08404]
[1738959415702,0.2073031,96463.0,96461.0,0.001]
[1738959416105,0.2073031,96463.0,96461.0,0.002]
[1738959417303,0.2073031,96463.0,96461.0,0.001]
[1738959417610,0.2073117,96459.0,96458.0,0.001]
[1738959418012,0.5681053,96462.0,96461.0,0.001]
[1738959420006,0.2083117,96459.0,96458.0,0.002]
[1738959420709,0.001,96459.0,96458.0,0.002]
[1738959420905,0.00155574,96464.0,96458.0,0.002]
[1738959421110,0.00155574,96464.0,96463.0,0.2073031]
[1738959421508,0.3608,96504.0,96463.0,0.6597508]
[1738959421816,0.3608,96504.0,96495.0,0.2072344]
[1738959422112,0.5680159,96504.0,96495.0,0.2072344]
[1738959422409,0.56853591,96504.0,96495.0,0.2072344]
[1738959422616,0.56853591,96504.0,96494.0,0.08348]
[1738959423001,0.36132001,96504.0,96494.0,0.08348]
[1738959423205,0.00052001,96504.0,96495.0,0.001]
[1738959423411,0.1,96510.0,96499.0,0.2072258]
[1738959423607,0.1,96510.0,96501.0,0.2072202]
[1738959424014,0.1,96510.0,96500.0,0.12430294]
[1738959424602,0.1,96510.0,96500.0,0.1855409]
[1738959424913,0.2072322,96497.0,96495.0,0.001]
[1738959425116,0.2072148,96505.0,96495.0,0.001]
[1738959425301,0.2072148,96505.0,96499.0,0.001]
[1738959425505,0.46132001,96510.0,96499.0,0.001]
[1738959425719,0.4608,96510.0,96499.0,0.001]
[1738959425907,0.4608,96510.0,96501.0,0.2072214]
[1738959426210,0.4608,96510.0,96499.0,0.001]
[1738959426713,0.4608,96510.0,96496.0,0.0682]
[1738959426909,0.2072079,96508.0,96499.0,0.001]
[1738959427110,0.2072112,96506.0,96500.0,0.001]
[1738959427409,0.2072145,96505.0,96501.0,0.08428]
[1738959427814,0.46132001,96510.0,96501.0,0.08428]
[1738959428109,0.4608,96510.0,96501.0,0.08428]
[1738959428316,0.2072083,96508.0,96502.0,0.08424]
[1738959428812,0.46132001,96510.0,96502.0,0.08424]
[1738959429015,0.2072116,96506.0,96502.0,0.08424]
[1738959429312,0.46132001,96510.0,96501.0,0.001]
[1738959429507,0.5680203,96502.0,96501.0,0.001]
[1738959429709,0.2072499,96488.0,96480.0,0.08416]
[1738959429907,0.3608,96487.0,96480.0,0.08416]
[1738959430422,0.2072821,96473.0,96462.0,0.08571495]
[1738959430614,0.5681031,96463.0,96462.0,0.00155495]
[1738959430813,0.5681031,96463.0,96446.0,0.2073387]
[1738959431010,0.3608,96448.0,96446.0,0.2073387]
[1738959431321,0.3608,96448.0,96440.0,0.32421299]
[1738959431514,0.3608,96448.0,96440.0,0.01288471]
[1738959431714,0.3608,96448.0,96439.0,0.2073547]
[1738959431919,0.3608,96440.0,96439.0,0.2073547]
[1738959432612,0.3608,96440.0,96437.0,0.00015553]
[1738959432817,0.3608,96440.0,96426.0,0.00155553]
[1738959433017,0.3608,96427.0,96426.0,0.00155553]
[1738959433720,0.3608,96427.0,96417.0,0.43395246]
[1738959433911,0.3608,96427.0,96425.0,0.2073846]
[1738959434113,0.00015553,96436.0,96426.0,0.2073808]
[1738959434316,0.00015553,96436.0,96427.0,0.0842]
[1738959434718,0.3608,96430.0,96427.0,0.0842]
[1738959435419,0.2073762,96429.0,96428.0,0.08404]
[1738959436017,0.3608,96430.0,96428.0,0.08404]
[1738959436528,0.2073762,96429.0,96428.0,0.08404]
[1738959436830,0.2073762,96429.0,96428.0,0.08804]
[1738959437220,0.3608,96430.0,96428.0,0.08804]
[1738959437816,0.3608,96430.0,96428.0,0.09004]
[1738959438433,0.3608,96430.0,96428.0,0.08804]
[1738959438722,0.3608,96430.0,96428.0,0.08904]
[1738959438925,0.3608,96430.0,96428.0,0.001]
[1738959439223,0.00015553,96436.0,96435.0,0.2073633]
[1738959439612,0.00015553,96436.0,96428.0,0.069]
[1738959439817,0.00015553,96436.0,96430.0,0.207372]
[1738959440217,0.00015553,96436.0,96428.0,0.069]
[1738959440415,0.3608,96431.0,96428.0,0.08121635]
[1738959440615,0.3608,96431.0,96428.0,0.07821635]
[1738959440817,0.00015553,96436.0,96428.0,0.08021635]
[1738959441016,0.00015553,96436.0,96431.0,0.2073714]
[1738959441621,0.00015553,96436.0,96429.0,0.0691]
[1738959442022,0.00015553,96436.0,96432.0,0.2073688]
[1738959442223,0.00015553,96436.0,96434.0,0.2073639]
[1738959442428,0.00115553,96436.0,96434.0,0.2073639]
[1738959442730,0.00115553,96436.0,96430.0,0.001]
[1738959442930,0.00115553,96436.0,96429.0,0.0701]
[1738959443414,0.3608,96430.0,96429.0,0.001]
[1738959443622,0.3608,96430.0,96417.0,0.00015553]
[1738959443923,0.3608,96427.0,96420.0,0.1855409]
[1738959444126,0.3608,96427.0,96421.0,0.0842]
[1738959445033,0.2073902,96423.0,96421.0,0.0842]
[1738959446332,0.2073902,96423.0,96421.0,0.0852]
[1738959446928,0.2073902,96423.0,96421.0,0.001]
[1738959447229,0.2083902,96423.0,96421.0,0.001]
[1738959448245,0.2133902,96423.0,96421.0,0.002]
[1738959448732,0.2163902,96423.0,96421.0,0.001]
[1738959448931,0.009,96423.0,96417.0,0.00015553]
[1738959449126,0.3608,96418.0,96417.0,0.00015553]
[1738959449325,0.3608,96418.0,96402.0,0.08368]
[1738959449523,0.3608,96406.0,96402.0,0.01208006]
[1738959449737,0.2074308,96404.0,96400.0,0.18364]
[1738959449938,0.2074308,96404.0,96401.0,0.2074364]
[1738959450626,0.2074343,96402.0,96400.0,0.18352]
[1738959450823,0.2074343,96402.0,96400.0,0.19610477]
[1738959451036,0.3608,96406.0,96400.0,0.19610477]
[1738959451238,0.3608,96406.0,96401.0,0.002]
[1738959451438,0.3608,96406.0,96404.0,0.2074292]
[1738959452833,0.00015553,96412.0,96411.0,0.2074149]
[1738959453035,0.3608,96427.0,96411.0,0.3608]
[1738959453227,0.36136001,96439.0,96415.0,0.1855409]
[1738959453424,0.2073666,96434.0,96418.0,0.2073985]
[1738959453627,0.2073666,96434.0,96419.0,0.0654]
[1738959453828,0.3608,96427.0,96419.0,0.0654]
[1738959454228,0.3608,96427.0,96420.0,0.2073956]
[1738959454428,0.00015553,96432.0,96424.0,0.207387]
[1738959454632,0.00015553,96432.0,96431.0,0.2073719]
[1738959454836,0.3608,96447.0,96435.0,0.2073618]
[1738959455036,0.3608,96447.0,96436.0,0.08336]
[1738959455643,0.3608,96447.0,96437.0,0.1855409]
[1738959455836,0.3608,96447.0,96440.0,0.2073521]
[1738959456141,0.003,96447.0,96439.0,0.3608]
[1738959456346,0.003,96447.0,96445.0,0.207341]
[1738959456645,0.17827613,96459.0,96457.0,0.2073154]
[1738959456840,0.17827613,96459.0,96458.0,0.08336]
[1738959457435,0.3608,96463.0,96458.0,0.08336]
[1738959457635,0.3608,96473.0,96458.0,0.08336]
[1738959457838,0.3608,96483.0,96465.0,0.2072983]
[1738959457839,0.2072626,96482.0,96465.0,0.2072983]
[1738959458142,0.2072626,96482.0,96463.0,0.1855409]
[1738959458340,0.3608,96483.0,96463.0,0.1855409]
[1738959458539,0.3608,96483.0,96471.0,0.2072853]
[1738959458847,0.15046677,96492.0,96470.0,0.5463409]
[1738959459036,0.3608,96485.0,96475.0,0.2072762]
[1738959459245,0.3608,96485.0,96476.0,0.08336]
[1738959459743,0.2072582,96484.0,96476.0,0.08336]
[1738959460050,0.3608,96485.0,96477.0,0.2072709]
[1738959460250,0.3608,96485.0,96483.0,0.2072593]
[1738959460545,0.3608,96491.0,96477.0,0.4272]
[1738959460750,0.003,96485.0,96480.0,0.1855409]
[1738959461047,0.003,96485.0,96480.0,0.3928067]
[1738959461245,0.012,96485.0,96480.0,0.3928067]
[1738959462048,0.012,96485.0,96480.0,0.3938067]
[1738959462248,0.012,96485.0,96480.0,0.19892817]
[1738959462449,0.012,96485.0,96483.0,0.2072598]
[1738959462754,0.014,96485.0,96480.0,0.19892817]
[1738959462951,0.2072634,96482.0,96480.0,0.01338727]
[1738959463344,0.009,96485.0,96480.0,0.01438727]
[1738959463652,0.013,96485.0,96480.0,0.01438727]
[1738959463850,0.2202579,96485.0,96480.0,0.01438727]
[1738959464251,0.2202579,96485.0,96483.0,0.001]
[1738959464942,0.2112579,96485.0,96484.0,0.08332]
[1738959465143,0.2202579,96485.0,96484.0,0.08332]
[1738959465548,0.2202579,96485.0,96480.0,0.01438727]
[1738959465748,0.3608,96482.0,96480.0,0.09770727]
[1738959465953,0.3608,96482.0,96480.0,0.09670727]
[1738959466348,0.3608,96482.0,96481.0,0.2072645]
[1738959466943,0.014,96485.0,96481.0,0.2072645]
[1738959467355,0.014,96485.0,96480.0,0.09670727]
[1738959467551,0.005,96485.0,96484.0,0.207258]
[1738959468160,0.3608,96491.0,96481.0,0.001]
[1738959468351,0.2122623,96482.0,96480.0,0.09570727]
[1738959468552,0.005,96482.0,96480.0,0.09670727]
[1738959468751,0.009,96485.0,96480.0,0.09670727]
[1738959468953,0.014,96485.0,96484.0,0.001]
[1738959469558,0.005,96482.0,96480.0,0.09670727]
[1738959470046,0.009,96485.0,96480.0,0.09570727]
[1738959470253,0.005,96485.0,96484.0,0.001]
[1738959470452,0.3658,96485.0,96484.0,0.001]
[1738959471366,0.005,96485.0,96484.0,0.001]
[1738959471954,0.005,96482.0,96480.0,0.01338727]
[1738959472367,0.3608,96485.0,96484.0,0.001]
[1738959472659,0.3658,96485.0,96484.0,0.001]
[1738959473349,0.3748,96485.0,96484.0,0.002]
[1738959473554,0.014,96485.0,96484.0,0.002]
[1738959473756,0.014,96485.0,96484.0,0.0653]
[1738959473959,0.014,96485.0,96484.0,0.002]
[1738959475961,0.009,96485.0,96484.0,0.001]
[1738959476162,0.002,96485.0,96481.0,0.064]
[1738959476366,0.002,96485.0,96484.0,0.207258]
[1738959476549,0.002,96485.0,96484.0,0.208258]
[1738959476749,0.428,96505.0,96486.0,0.2072535]
[1738959476947,0.428,96505.0,96496.0,0.2072305]
[1738959477157,0.428,96505.0,96497.0,0.08372]
[1738959477461,0.3608,96505.0,96497.0,0.08372]
[1738959477659,0.3608,96505.0,96498.0,0.2072269]
[1738959477866,0.3608,96505.0,96497.0,0.08372]
[1738959478960,0.3608,96505.0,96498.0,0.2072272]
[1738959479463,0.5730134,96505.0,96497.0,0.08372]
[1738959479857,0.5790134,96505.0,96497.0,0.08372]
[1738959480260,0.207228,96498.0,96497.0,0.08372]
[1738959480566,0.207228,96498.0,96497.0,0.001]
[1738959480762,0.207228,96498.0,96497.0,0.08444]
[1738959481760,0.207228,96498.0,96497.0,0.001]
[1738959482462,0.007,96498.0,96497.0,0.2082293]
[1738959483063,0.01,96498.0,96497.0,0.2082293]
[1738959484861,0.01,96498.0,96497.0,0.001]
[1738959486461,0.003,96498.0,96497.0,0.08328]
[1738959486669,0.009,96498.0,96497.0,0.08328]
[1738959487655,0.006,96498.0,96497.0,0.08328]
[1738959487859,0.009,96498.0,96497.0,0.08328]
[1738959490857,0.2162279,96498.0,96497.0,0.08328]
[1738959491069,0.009,96498.0,96496.0,0.0123103]
[1738959491372,0.20723,96497.0,96493.0,0.08328]
[1738959492763,0.009,96498.0,96493.0,0.08328]
[1738959493069,0.002,96497.0,96493.0,0.08328]
[1738959493274,0.002,96497.0,96496.0,0.2072322]
[1738959493569,0.008,96497.0,96496.0,0.2072322]
[1738959493869,0.008,96497.0,96493.0,0.08328]
[1738959494071,0.2072365,96494.0,96493.0,0.08328]
[1738959494668,0.008,96497.0,96493.0,0.08328]
[1738959494872,0.006,96497.0,96495.0,0.2072342]
[1738959495063,0.003,96498.0,96495.0,0.2072342]
[1738959495264,0.006,96497.0,96495.0,0.2072342]
[1738959495668,0.006,96497.0,96493.0,0.08328]
[1738959495871,0.3608,96499.0,96493.0,0.08328]
[1738959496167,0.008,96497.0,96495.0,0.2072337]
[1738959497568,0.3608,96533.0,96496.0,0.04954919]
[1738959497873,0.3608,96533.0,96526.0,0.2071671]
[1738959498069,0.3608,96533.0,96527.0,0.08328]
[1738959498268,0.20716,96530.0,96527.0,0.08328]
[1738959498469,0.3608,96533.0,96527.0,0.08328]
[1738959498669,0.2071573,96531.0,96527.0,0.08328]
[1738959499263,0.2071573,96531.0,96527.0,0.08428]
[1738959499469,0.21215566,96530.0,96527.0,0.08428]